bitfinex/quotes_BTCUSD_20220103
["timestamp","ask_amount","ask_price","bid_price","bid_amount"]
[1641217446716,0.2,47249.0,47242.0,0.00825744]
[1641217446717,0.44626171,47248.0,47242.0,0.00825744]
[1641217446915,0.44937151,47228.0,47227.0,0.96079036]
[1641217447185,0.54937151,47228.0,47220.0,1.07875976]
[1641217447389,0.96937151,47228.0,47217.0,0.00514]
[1641217447582,0.26158302,47222.0,47218.0,0.00089982]
[1641217447785,0.44570402,47221.0,47218.0,0.00089982]
[1641217447985,0.44570402,47221.0,47219.0,0.00056599]
[1641217448190,0.49865409,47221.0,47219.0,0.00056599]
[1641217448987,0.44570402,47221.0,47219.0,0.00056599]
[1641217449191,0.44570402,47221.0,47220.0,0.0057082]
[1641217449391,0.42,47228.0,47221.0,0.00664021]
[1641217449589,0.42,47228.0,47222.0,0.00716907]
[1641217449787,0.42,47228.0,47223.0,0.00724642]
[1641217449988,0.42,47228.0,47223.0,0.00605661]
[1641217450190,0.42,47228.0,47224.0,0.0004747]
[1641217450592,0.42,47228.0,47223.0,0.00503895]
[1641217450824,0.42,47228.0,47223.0,0.0068985]
[1641217451025,0.78558197,47228.0,47224.0,0.06023786]
[1641217451226,0.78558197,47228.0,47225.0,0.00588695]
[1641217451423,0.78558197,47228.0,47226.0,0.052934]
[1641217451625,0.78558197,47228.0,47226.0,0.05337219]
[1641217451824,0.78558197,47228.0,47227.0,0.00041993]
[1641217453130,0.42,47228.0,47227.0,0.00041993]
[1641217453430,0.00128093,47241.0,47227.0,1.69442378]
[1641217453629,0.5,47240.0,47233.0,0.052929]
[1641217453841,0.5,47240.0,47234.0,0.31179635]
[1641217454028,0.0529287,47239.0,47234.0,0.31208847]
[1641217454228,0.0529287,47239.0,47235.0,0.00027387]
[1641217454433,0.40045055,47236.0,47235.0,0.00027387]
[1641217454868,0.40045055,47236.0,47235.0,0.31279865]
[1641217455271,0.40045055,47236.0,47235.0,0.31814354]
[1641217455468,0.40045055,47236.0,47235.0,0.36279865]
[1641217456071,0.40045055,47236.0,47235.0,0.41279865]
[1641217457068,0.42,47242.0,47235.0,0.41279865]
[1641217457271,0.42,47242.0,47238.0,0.052924]
[1641217457470,0.42,47242.0,47239.0,0.29890647]
[1641217457673,0.42,47242.0,47239.0,0.3991073]
[1641217457872,0.42,47242.0,47240.0,0.00018258]
[1641217458173,0.84400565,47242.0,47240.0,0.00018258]
[1641217458408,0.84400565,47242.0,47240.0,0.05310058]
[1641217458609,0.84400565,47242.0,47241.0,0.31683161]
[1641217458911,0.84400565,47242.0,47241.0,0.36699593]
[1641217459712,0.84400565,47242.0,47241.0,0.31699593]
[1641217460812,0.84400565,47242.0,47241.0,0.36699593]
[1641217462754,0.84400565,47242.0,47241.0,0.31699593]
[1641217463757,0.84400565,47242.0,47241.0,0.00016432]
[1641217464156,0.84400565,47242.0,47239.0,0.00020083]
[1641217464357,0.84400565,47242.0,47234.0,0.00029212]
[1641217465157,0.84400565,47242.0,47237.0,0.052925]
[1641217465356,0.84400565,47242.0,47237.0,0.052924]
[1641217465657,0.84400565,47242.0,47238.0,0.00021909]
[1641217466114,0.84400565,47242.0,47239.0,0.052921]
[1641217466310,0.84400565,47242.0,47236.0,0.00025561]
[1641217466510,0.84400565,47242.0,47240.0,0.00018258]
[1641217466711,0.84400565,47242.0,47241.0,0.052921]
[1641217467112,0.84400565,47242.0,47241.0,0.05308532]
[1641217469114,0.84400565,47242.0,47241.0,0.00016432]
[1641217470759,0.84400565,47242.0,47239.0,0.00020083]
[1641217471358,0.84400565,47242.0,47239.0,0.05312483]
[1641217471759,0.84400565,47242.0,47240.0,0.00018258]
[1641217473159,0.84400565,47242.0,47238.0,0.00604241]
[1641217473409,0.84400565,47242.0,47238.0,0.0062615]
[1641217473611,0.84400565,47242.0,47239.0,0.00020083]
[1641217474812,0.84400565,47242.0,47238.0,0.00021909]
[1641217475009,0.84400565,47242.0,47239.0,0.00020083]
[1641217475210,0.89693197,47242.0,47238.0,0.00021909]
[1641217475411,0.2534343,47241.0,47239.0,0.00020083]
[1641217475613,0.2534343,47241.0,47238.0,0.00794865]
[1641217475811,0.2534343,47241.0,47239.0,0.00020083]
[1641217476010,0.89693197,47242.0,47239.0,0.00020083]
[1641217476213,0.89693197,47242.0,47238.0,0.00522806]
[1641217476611,0.89693197,47242.0,47239.0,0.00020083]
[1641217477060,0.89693197,47242.0,47238.0,0.00662441]
[1641217477459,0.89693197,47242.0,47239.0,0.00020083]
[1641217477856,0.89693197,47242.0,47238.0,0.00700056]
[1641217478257,0.89693197,47242.0,47239.0,0.00020083]
[1641217478258,0.84400565,47242.0,47239.0,0.00020083]
[1641217478762,0.84372008,47242.0,47239.0,0.00020083]
[1641217478957,0.84372008,47242.0,47237.0,0.00779394]
[1641217479158,0.84372008,47242.0,47237.0,0.00722701]
[1641217479458,0.84372008,47242.0,47239.0,0.052919]
[1641217479657,0.84372008,47242.0,47240.0,0.052919]
[1641217479857,0.84372008,47242.0,47240.0,0.05310158]
[1641217480061,0.84372008,47242.0,47241.0,0.00016432]
[1641217481113,0.84372008,47242.0,47240.0,0.00018258]
[1641217482915,1.14623363,47242.0,47240.0,0.00018258]
[1641217483114,0.30071817,47241.0,47234.0,0.00029212]
[1641217483518,0.84372008,47242.0,47232.0,0.00032864]
[1641217483717,0.05292883,47239.0,47236.0,0.052928]
[1641217483916,0.84372008,47242.0,47236.0,0.052928]
[1641217484116,0.84372008,47242.0,47237.0,0.00023735]
[1641217485654,0.05292712,47241.0,47237.0,0.00023735]
[1641217485854,0.84372008,47242.0,47237.0,0.00023735]
[1641217486255,0.84372008,47242.0,47237.0,0.05316435]
[1641217486454,0.84372008,47242.0,47237.0,0.00023735]
[1641217486654,0.84372008,47242.0,47238.0,0.00021909]
[1641217486857,0.42,47242.0,47241.0,0.00121545]
[1641217487054,0.00827161,47251.0,47242.0,0.00604785]
[1641217487256,0.00827161,47251.0,47250.0,0.00129907]
[1641217487556,0.00827161,47251.0,47250.0,0.04869907]
[1641217487759,0.00827161,47251.0,47250.0,0.10160907]
[1641217487955,0.33273182,47251.0,47250.0,0.10160907]
[1641217488713,0.32446021,47251.0,47250.0,0.10160907]
[1641217489113,0.32446021,47251.0,47250.0,0.38875672]
[1641217490215,0.32446021,47251.0,47250.0,0.39061826]
[1641217493366,0.32446021,47251.0,47250.0,0.10031]
[1641217495168,0.32446021,47251.0,47250.0,0.39202169]
[1641217496505,0.42,47254.0,47250.0,0.39202169]
[1641217496708,0.42,47254.0,47251.0,0.052908]
[1641217497010,0.42,47254.0,47252.0,0.052907]
[1641217498008,0.42,47254.0,47252.0,0.105814]
[1641217498909,0.42,47254.0,47252.0,0.052907]
[1641217500154,0.42,47254.0,47252.0,0.105816]
[1641217500760,0.42,47254.0,47253.0,0.29490318]
[1641217501755,0.42,47254.0,47252.0,0.155816]
[1641217502957,0.42,47254.0,47252.0,0.105816]
[1641217503605,0.42,47254.0,47253.0,0.39760966]
[1641217503907,0.42,47254.0,47253.0,0.39882139]
[1641217504307,0.42,47254.0,47253.0,0.74316639]
[1641217504506,0.42007303,47254.0,47253.0,0.89316639]
[1641217504906,0.42007303,47254.0,47253.0,0.94316639]
[1641217507968,0.42007303,47254.0,47253.0,1.49316639]
[1641217509368,0.42007303,47254.0,47253.0,1.49546651]
[1641217510468,0.42007303,47254.0,47253.0,1.54286651]
[1641217511119,0.40507303,47254.0,47253.0,1.54286651]
[1641217511920,0.40507303,47254.0,47253.0,1.49286651]
[1641217512926,0.40507303,47254.0,47253.0,1.20106385]
[1641217513926,0.40507303,47254.0,47253.0,1.4700371]
[1641217514123,0.40507303,47254.0,47253.0,1.5700371]
[1641217514767,0.40507303,47254.0,47253.0,1.5200371]
[1641217514965,0.40507303,47254.0,47253.0,1.6200371]
[1641217515364,0.40507303,47254.0,47253.0,1.35106385]
[1641217515965,0.40507303,47254.0,47253.0,1.25106385]
[1641217516167,0.40507303,47254.0,47253.0,0.95245212]
[1641217516366,0.40507303,47254.0,47253.0,0.70810712]
[1641217517766,0.40507303,47254.0,47253.0,0.20810712]
[1641217520727,0.40507303,47254.0,47253.0,0.70810712]
[1641217521025,0.40507303,47254.0,47253.0,0.65810712]
[1641217522080,7.303e-05,47254.0,47253.0,0.92488329]
[1641217522472,7.303e-05,47254.0,47253.0,0.97488329]
[1641217522672,7.303e-05,47254.0,47253.0,0.70810712]
[1641217522871,7.303e-05,47254.0,47253.0,0.80810712]
[1641217524672,7.303e-05,47254.0,47253.0,1.15245212]
[1641217529021,7.303e-05,47254.0,47253.0,1.05245212]
[1641217533073,7.303e-05,47254.0,47253.0,0.70810712]
[1641217533725,7.303e-05,47254.0,47253.0,0.20810712]
[1641217534523,0.42,47260.0,47253.0,0.20810712]
[1641217534729,0.30175648,47259.0,47255.0,0.052907]
[1641217534927,0.3019208,47259.0,47256.0,0.052907]
[1641217535125,0.3019208,47259.0,47258.0,0.00230012]
[1641217536331,0.00016432,47259.0,47258.0,0.00230012]
[1641217540577,0.58722237,47259.0,47258.0,0.00230012]
[1641217542530,0.00016432,47259.0,47258.0,0.00230012]
[1641217544130,0.00016432,47259.0,47258.0,0.00968045]
[1641217544775,0.00016432,47259.0,47258.0,0.00230012]
[1641217544974,0.00016432,47259.0,47258.0,0.00772485]
[1641217545178,0.00016432,47259.0,47258.0,0.00230012]
[1641217545675,0.00016432,47259.0,47258.0,0.00955626]
[1641217547683,0.00016432,47259.0,47258.0,0.00455626]
[1641217549021,0.00016432,47259.0,47258.0,0.00966569]
[1641217549221,0.00016432,47259.0,47258.0,0.00230012]
[1641217553584,0.00016432,47259.0,47258.0,0.29081516]
[1641217553983,0.00016432,47259.0,47258.0,0.34081516]
[1641217554192,0.00016432,47259.0,47258.0,0.44081516]
[1641217555083,0.00016432,47259.0,47258.0,0.29081516]
[1641217555289,0.00016432,47259.0,47258.0,0.00230012]
[1641217556318,0.00016432,47259.0,47258.0,0.29328124]
[1641217557119,0.00016432,47259.0,47258.0,0.00230012]
[1641217559420,0.00016432,47259.0,47258.0,0.00937077]
[1641217559676,0.00016432,47259.0,47258.0,0.00230012]
[1641217559875,0.00016432,47259.0,47258.0,0.28843061]
[1641217560480,0.00016432,47259.0,47258.0,0.33843061]
[1641217560874,0.00016432,47259.0,47258.0,0.28843061]
[1641217561277,0.00016432,47259.0,47258.0,0.00230012]
[1641217561875,0.00016432,47259.0,47258.0,0.05230012]
[1641217565521,0.42,47260.0,47259.0,0.052895]
[1641217565920,0.42018258,47260.0,47259.0,0.052895]
[1641217566120,0.42018258,47260.0,47259.0,0.05519512]
[1641217574676,0.42018258,47260.0,47259.0,0.36336369]
[1641217575575,0.42018258,47260.0,47259.0,0.4479589]
[1641217575774,0.42018258,47260.0,47259.0,0.4979589]
[1641217576177,0.42018258,47260.0,47259.0,0.8423039]
[1641217577178,0.42018258,47260.0,47259.0,0.7923039]
[1641217577575,0.42018258,47260.0,47259.0,0.8923039]
[1641217577777,0.42018258,47260.0,47259.0,0.9423039]
[1641217578813,0.00018258,47260.0,47259.0,0.9423039]
[1641217583672,0.00018258,47260.0,47259.0,0.94357117]
[1641217585274,0.00018258,47260.0,47259.0,1.44357117]
[1641217585676,0.00018258,47260.0,47259.0,2.56457117]
[1641217586121,0.00018258,47260.0,47259.0,2.61197117]
[1641217590276,0.00018258,47260.0,47259.0,2.61728624]
[1641217590476,0.00018258,47260.0,47259.0,2.61197117]
[1641217592479,0.00018258,47260.0,47259.0,3.11197117]
[1641217593183,0.00829937,47263.0,47260.0,1.65]
[1641217593436,0.002,47269.0,47264.0,1.121]
[1641217593635,0.002,47269.0,47268.0,0.34559799]
[1641217593834,0.002,47269.0,47268.0,0.09865299]
[1641217594036,0.002,47269.0,47268.0,1.32195311]
[1641217594239,0.002,47269.0,47268.0,1.37195311]
[1641217594634,0.002,47269.0,47268.0,1.87195311]
[1641217594835,0.002,47269.0,47268.0,2.21629811]
[1641217595235,0.002,47269.0,47268.0,2.26917211]
[1641217595838,0.002,47269.0,47268.0,1.14817211]
[1641217596036,0.002,47269.0,47268.0,1.09817211]
[1641217597785,0.002,47269.0,47268.0,1.31922875]
[1641217597986,0.00561663,47274.0,47273.0,0.00125685]
[1641217598185,0.00561663,47274.0,47273.0,0.04865685]
[1641217598888,0.00561663,47274.0,47273.0,0.39300185]
[1641217599088,0.00561663,47274.0,47273.0,0.49300185]
[1641217599291,0.00561663,47274.0,47273.0,0.49530197]
[1641217600087,0.00561663,47274.0,47273.0,0.99530197]
[1641217600389,0.0001,47276.0,47274.0,0.052878]
[1641217600591,0.0001,47276.0,47275.0,0.344345]
[1641217601035,0.0001,47276.0,47275.0,0.444345]
[1641217603139,0.0001,47276.0,47275.0,0.65847384]
[1641217603739,0.0001,47276.0,47275.0,0.444345]
[1641217604575,0.0001,47276.0,47275.0,0.44664512]
[1641217604971,0.0001,47276.0,47275.0,0.34664512]
[1641217605171,0.0001,47276.0,47275.0,0.00230012]
[1641217618841,1.49036368,47276.0,47275.0,0.00230012]
[1641217619040,0.0001,47276.0,47275.0,0.00230012]
[1641217621069,0.32903233,47276.0,47275.0,0.00230012]
[1641217621470,1.15864786,47276.0,47275.0,0.00230012]
[1641217622274,1.65864786,47276.0,47275.0,0.00230012]
[1641217622870,1.54162412,47276.0,47275.0,0.00230012]
[1641217623069,1.21269179,47276.0,47275.0,0.00230012]
[1641217623719,0.71269179,47276.0,47275.0,0.00230012]
[1641217624318,0.0001,47276.0,47275.0,0.00230012]
[1641217624520,0.30882015,47276.0,47275.0,0.00230012]
[1641217624924,1.02141194,47276.0,47275.0,0.00230012]
[1641217625118,0.30882015,47276.0,47275.0,0.00230012]
[1641217625319,1.33843568,47276.0,47275.0,0.00230012]
[1641217625519,1.13843568,47276.0,47275.0,0.00230012]
[1641217627781,0.82971553,47276.0,47275.0,0.00230012]
[1641217628185,0.0001,47276.0,47275.0,0.00230012]
[1641217628584,1.67971553,47276.0,47275.0,0.00230012]
[1641217628784,0.82971553,47276.0,47275.0,0.00230012]
[1641217629185,1.20096076,47276.0,47275.0,0.00230012]
[1641217629786,0.0001,47276.0,47275.0,0.00230012]
[1641217629990,1.20096076,47276.0,47275.0,0.00230012]
[1641217630588,0.83138951,47276.0,47275.0,0.00230012]
[1641217631419,1.20094134,47276.0,47275.0,0.00230012]
[1641217631619,0.0001,47276.0,47275.0,0.00230012]
[1641217632019,1.20094134,47276.0,47275.0,0.00230012]
[1641217632824,1.70094134,47276.0,47275.0,0.00230012]
[1641217633421,1.33130975,47276.0,47275.0,0.00230012]
[1641217634421,0.83130975,47276.0,47275.0,0.00230012]
[1641217635086,0.0001,47276.0,47275.0,0.00230012]
[1641217635285,1.20095167,47276.0,47275.0,0.00230012]
[1641217635684,0.0001,47276.0,47275.0,0.00230012]
[1641217636287,0.83130261,47276.0,47275.0,0.00230012]
[1641217638419,0.0001,47276.0,47275.0,0.00230012]
[1641217638620,1.70094332,47276.0,47275.0,0.00230012]
[1641217640423,1.21171038,47276.0,47275.0,0.00230012]
[1641217641625,0.5001,47276.0,47275.0,0.00230012]
[1641217641825,1.70097071,47276.0,47275.0,0.00230012]
[1641217642098,0.5001,47276.0,47275.0,0.00230012]
[1641217642486,1.70097071,47276.0,47275.0,0.00230012]
[1641217647844,1.90097071,47276.0,47275.0,0.00230012]
[1641217648049,2.14837071,47276.0,47275.0,0.00230012]
[1641217648247,2.14837071,47276.0,47269.0,0.00831654]
[1641217648248,0.2,47274.0,47269.0,0.00831654]
[1641217648446,1.66125944,47270.0,47269.0,0.00831654]
[1641217648648,2.04500344,47270.0,47269.0,1.654e-05]
[1641217648845,0.2,47269.0,47256.0,0.0001]
[1641217649047,3.24591056,47270.0,47239.0,0.052921]
[1641217649048,0.1,47257.0,47239.0,0.052921]
[1641217649247,0.1,47257.0,47241.0,0.5]
[1641217649248,0.27077182,47246.0,47241.0,0.5]
[1641217649448,0.2474,47245.0,47240.0,0.00036516]
[1641217649881,0.2,47243.0,47239.0,0.00038341]
[1641217650086,0.47076565,47242.0,47241.0,0.00636251]
[1641217650285,0.47076565,47242.0,47237.0,0.00041993]
[1641217650483,0.471989,47242.0,47241.0,0.0003469]
[1641217650681,0.471989,47242.0,47237.0,0.00564763]
[1641217650682,1.02492193,47242.0,47237.0,0.00564763]
[1641217650879,1.02492193,47242.0,47235.0,0.00566875]
[1641217651082,1.02492193,47242.0,47234.0,0.105866]
[1641217651083,1.02492193,47242.0,47238.0,0.00040167]
[1641217651284,0.32694058,47241.0,47236.0,0.00635317]
[1641217651479,0.32694058,47241.0,47237.0,0.00718567]
[1641217651681,0.32694058,47241.0,47238.0,0.00706135]
[1641217651879,0.32694058,47241.0,47238.0,0.00040167]
[1641217652081,0.32694058,47241.0,47239.0,0.00038341]
[1641217652279,0.32694058,47241.0,47236.0,0.00777429]
[1641217652581,0.32694058,47241.0,47229.0,0.20514839]
[1641217652582,0.32694058,47241.0,47238.0,0.052932]
[1641217652784,0.32694058,47241.0,47238.0,0.06008651]
[1641217652980,0.32694058,47241.0,47239.0,0.00038341]
[1641217653180,1.27482015,47242.0,47239.0,0.00038341]
[1641217655242,1.86569831,47242.0,47239.0,0.00038341]
[1641217655647,1.56164381,47242.0,47239.0,0.00820266]
[1641217655843,1.56164381,47242.0,47240.0,0.00747305]
[1641217655844,1.09087816,47242.0,47240.0,0.00747305]
[1641217656046,1.09087816,47242.0,47241.0,0.09249192]
[1641217656348,1.09087816,47242.0,47241.0,0.0579893]
[1641217656349,0.59087816,47242.0,47241.0,0.0579893]
[1641217656544,0.59087816,47242.0,47241.0,0.0003469]
[1641217656744,0.5,47244.0,47241.0,0.0003469]
[1641217656946,0.5,47244.0,47242.0,0.052916]
[1641217657196,0.41967406,47245.0,47243.0,0.052916]
[1641217657394,0.41967406,47245.0,47243.0,0.05322638]
[1641217657595,0.41967406,47245.0,47244.0,0.00029213]
[1641217658193,0.59087816,47249.0,47244.0,0.00029213]
[1641217658394,0.59087816,47249.0,47245.0,0.211659]
[1641217658596,0.59917439,47249.0,47246.0,0.05]
[1641217658795,0.59087816,47248.0,47246.0,0.05025561]
[1641217658998,0.59087816,47248.0,47247.0,0.00023735]
[1641217660297,0.00829623,47249.0,47247.0,0.00023735]
[1641217660298,0.59087816,47249.0,47247.0,0.00023735]
[1641217661140,0.59087816,47248.0,47247.0,1.50023735]
[1641217661840,0.42198664,47249.0,47247.0,1.50023735]
[1641217661841,1.0128648,47249.0,47247.0,1.50023735]
[1641217662041,0.59087816,47248.0,47247.0,1.50023735]
[1641217662242,0.59087816,47248.0,47247.0,1.5]
[1641217663246,1.0128648,47249.0,47247.0,1.5]
[1641217663643,1.0128648,47249.0,47248.0,0.00021909]
[1641217665591,0.42198664,47249.0,47248.0,0.00021909]
[1641217666591,0.42198664,47249.0,47248.0,0.00730227]
[1641217666791,0.92198664,47249.0,47248.0,0.00021909]
[1641217666997,0.5,47249.0,47248.0,0.00021909]
[1641217667195,1.09134261,47249.0,47248.0,0.00021909]
[1641217668195,0.59134261,47250.0,47248.0,0.00021909]
[1641217668442,0.59134261,47250.0,47249.0,0.052911]
[1641217668646,0.31856691,47258.0,47249.0,0.102911]
[1641217668945,0.5,47256.0,47252.0,0.105817]
[1641217669142,0.5,47256.0,47253.0,0.1]
[1641217669344,0.5,47256.0,47253.0,0.1001278]
[1641217669547,0.5,47256.0,47254.0,0.00010955]
[1641217670645,0.92093638,47256.0,47254.0,0.00010955]
[1641217673896,0.5,47256.0,47254.0,0.00010955]
[1641217675929,0.95111017,47256.0,47254.0,0.00010955]
[1641217676331,0.95111017,47256.0,47254.0,0.09386266]
[1641217676532,0.95111017,47256.0,47254.0,0.00010955]
[1641217676731,0.95111017,47256.0,47255.0,9.129e-05]
[1641217676932,0.95111017,47256.0,47254.0,0.00672604]
[1641217677135,0.95111017,47256.0,47255.0,0.00552863]
[1641217677339,0.95111017,47256.0,47255.0,9.129e-05]
[1641217677736,0.95111017,47256.0,47254.0,0.00010955]
[1641217678337,0.45111017,47256.0,47254.0,0.00010955]
[1641217679340,0.11862205,47264.0,47254.0,0.00010955]
[1641217679341,0.01279605,47264.0,47254.0,0.00010955]
[1641217679608,0.5,47262.0,47260.0,0.052906]
[1641217680000,0.5,47262.0,47260.0,0.102906]
[1641217680395,0.5,47262.0,47261.0,0.05]
[1641217681396,0.5,47262.0,47261.0,0.13463634]
[1641217681995,0.076825,47262.0,47261.0,0.13463634]
[1641217682196,0.5,47266.0,47262.0,0.052899]
[1641217682399,0.40328282,47267.0,47263.0,0.052899]
[1641217682600,9.129e-05,47265.0,47263.0,0.052899]
[1641217682997,7.303e-05,47264.0,47263.0,0.052899]
[1641217683425,0.00010955,47264.0,47263.0,0.052899]
[1641217688292,0.33180976,47264.0,47263.0,0.052899]
[1641217688894,0.53180976,47264.0,47261.0,0.052907]
[1641217689094,0.57920811,47258.0,47257.0,0.11410891]
[1641217689292,0.24920811,47258.0,47257.0,0.11410891]
[1641217690095,1.45025932,47258.0,47257.0,0.11410891]
[1641217690297,1.45025932,47258.0,47257.0,0.105813]
[1641217690595,0.95904566,47258.0,47257.0,0.105813]
[1641217691932,0.24920811,47258.0,47257.0,0.105813]
[1641217692133,0.55368599,47258.0,47257.0,0.105813]
[1641217692336,0.55368599,47258.0,47256.0,0.105817]
[1641217692534,0.3025598,47257.0,47256.0,0.105817]
[1641217692938,0.3025598,47257.0,47256.0,0.10589003]
[1641217694034,0.3055227,47257.0,47256.0,0.10589003]
[1641217694237,0.0029629,47257.0,47256.0,0.10589003]
[1641217694683,0.5941241,47257.0,47256.0,0.10589003]
[1641217694886,0.89604501,47257.0,47256.0,0.10589003]
[1641217695083,0.89604501,47257.0,47256.0,7.303e-05]
[1641217695288,1.19604501,47257.0,47256.0,7.303e-05]
[1641217695485,1.19604501,47257.0,47254.0,0.00010955]
[1641217695684,0.60192091,47257.0,47252.0,0.00014606]
[1641217695882,0.27982104,47253.0,47252.0,0.00014606]
[1641217696083,1.46215717,47253.0,47252.0,0.00014606]
[1641217696283,0.65215717,47253.0,47252.0,0.00014606]
[1641217696983,0.70983755,47253.0,47251.0,0.00016432]
[1641217697181,0.37263931,47252.0,47251.0,0.00016432]
[1641217697581,0.37263931,47252.0,47251.0,0.00758954]
[1641217697886,0.37263931,47252.0,47251.0,0.00016432]
[1641217698085,0.66333075,47252.0,47251.0,0.00016432]
[1641217698539,1.25702704,47252.0,47251.0,0.00016432]
[1641217698938,1.3757663,47252.0,47251.0,0.00016432]
[1641217700039,0.66333075,47252.0,47251.0,0.00016432]
[1641217700243,1.3757663,47252.0,47251.0,0.00016432]
[1641217701843,0.66333075,47252.0,47251.0,0.00016432]
[1641217703491,0.66333075,47252.0,47249.0,0.00020084]
[1641217704092,0.59350967,47251.0,47249.0,0.00020084]
[1641217705291,0.59350967,47250.0,47249.0,0.00020084]
[1641217707327,0.84223502,47250.0,47249.0,0.00020084]
[1641217707930,0.84223502,47250.0,47249.0,0.00661501]
[1641217708928,0.59350967,47250.0,47249.0,0.00661501]
[1641217710784,0.59350967,47250.0,47249.0,0.00020084]
[1641217710988,0.59350967,47250.0,47249.0,0.00677162]
[1641217711585,0.59350967,47250.0,47249.0,0.0053392]
[1641217711784,0.59350967,47250.0,47249.0,0.00020084]
[1641217713088,0.96614898,47252.0,47249.0,0.00020084]
[1641217713329,0.96614898,47252.0,47250.0,0.052917]
[1641217713731,0.96614898,47252.0,47251.0,0.00016432]
[1641217714633,0.96614898,47252.0,47250.0,0.04206035]
[1641217715837,0.37263931,47252.0,47250.0,0.04206035]
[1641217718280,0.96614898,47252.0,47250.0,0.04206035]
[1641217718584,0.96614898,47252.0,47249.0,0.052917]
[1641217718883,0.96558514,47252.0,47249.0,0.052917]
[1641217721744,0.96558514,47252.0,47249.0,0.06031801]
[1641217722146,0.96558514,47252.0,47249.0,0.052917]
[1641217722347,1.01850514,47252.0,47249.0,0.052917]
[1641217723650,0.96558514,47252.0,47249.0,0.052917]
[1641217724250,1.16558514,47252.0,47248.0,0.052921]
[1641217724449,1.16558514,47252.0,47247.0,1.5]
[1641217724450,1.26558514,47252.0,47247.0,1.5]
[1641217724681,0.0474,47251.0,47247.0,1.5]
[1641217724880,0.2,47250.0,47247.0,1.5]
[1641217725085,0.75,47248.0,47247.0,1.5]
[1641217725281,1.39643576,47248.0,47247.0,1.5]
[1641217725482,1.39643576,47248.0,47247.0,1.50007303]
[1641217725884,0.84643576,47248.0,47247.0,1.50007303]
[1641217726687,0.59350967,47248.0,47247.0,1.55007303]
[1641217727188,0.59350967,47248.0,47247.0,1.55768006]
[1641217727388,0.59350967,47248.0,47247.0,1.55007303]
[1641217727587,0.59350967,47250.0,47247.0,1.55007303]
[1641217727890,0.38037165,47252.0,47247.0,1.55007303]
[1641217728329,0.64045167,47252.0,47249.0,0.052917]
[1641217728531,0.64045167,47252.0,47249.0,0.105834]
[1641217729334,0.64045167,47252.0,47249.0,0.052917]
[1641217729532,1.54159399,47252.0,47249.0,0.052917]
[1641217729731,1.54159399,47252.0,47248.0,0.052922]
[1641217729930,1.74159399,47252.0,47248.0,0.052922]
[1641217730130,0.59350967,47251.0,47248.0,0.052922]
[1641217730331,0.64643167,47251.0,47248.0,0.052922]
[1641217730732,1.42566516,47252.0,47248.0,0.052922]
[1641217731734,1.47858516,47252.0,47248.0,0.052922]
[1641217732607,1.47858516,47252.0,47247.0,1.50007303]
[1641217732805,0.052923,47250.0,47247.0,1.50007303]
[1641217733403,0.64643267,47250.0,47247.0,1.50007303]
[1641217733802,0.59350967,47250.0,47248.0,0.052922]
[1641217734904,0.59350967,47251.0,47248.0,0.052922]
[1641217735504,0.63215549,47252.0,47248.0,0.052922]
[1641217736139,0.59350967,47251.0,47248.0,0.052922]
[1641217736341,0.59350967,47251.0,47249.0,0.052916]
[1641217736548,0.59350967,47251.0,47249.0,0.105831]
[1641217737642,0.59350967,47251.0,47250.0,0.00569799]
[1641217737841,0.59350967,47251.0,47250.0,0.05]
[1641217738041,0.59350967,47251.0,47250.0,0.1]
[1641217738240,0.96558514,47252.0,47250.0,0.1]
[1641217738439,0.96558514,47252.0,47250.0,0.152912]
[1641217739346,0.37207547,47252.0,47250.0,0.052912]
[1641217739893,0.37207547,47252.0,47250.0,0.102912]
[1641217740293,0.37207547,47252.0,47250.0,0.052912]
[1641217742596,1.08451102,47252.0,47250.0,0.052912]
[1641217743196,0.71243555,47251.0,47250.0,0.052912]
[1641217746633,0.37207547,47252.0,47250.0,0.052912]
[1641217747483,0.71934166,47251.0,47250.0,0.052912]
[1641217747886,0.71934166,47251.0,47250.0,0.0599919]
[1641217748188,1.09141713,47252.0,47251.0,0.00627286]
[1641217748387,1.09141713,47252.0,47250.0,0.052912]
[1641217748987,1.20112599,47251.0,47250.0,0.052912]
[1641217751131,1.20112599,47251.0,47250.0,0.102912]
[1641217752136,1.40112599,47251.0,47250.0,0.052912]
[1641217752731,1.40112599,47251.0,47250.0,0.102912]
[1641217753132,1.40112599,47251.0,47250.0,0.052912]
[1641217756689,1.40112599,47251.0,47247.0,1.5]
[1641217756890,0.2,47249.0,47247.0,1.5]
[1641217757088,1.84464286,47248.0,47247.0,1.5]
[1641217757289,0.64464286,47248.0,47247.0,1.5]
[1641217757890,0.69757518,47248.0,47247.0,1.5]
[1641217758091,1.89870117,47248.0,47247.0,1.5]
[1641217758346,1.55439031,47248.0,47247.0,1.5]
[1641217758847,1.24852599,47248.0,47247.0,1.55]
[1641217759247,1.20112599,47248.0,47247.0,1.55]
[1641217759847,1.20112599,47248.0,47247.0,1.5]
[1641217760152,1.20112599,47248.0,47247.0,1.55]
[1641217760350,0.83917849,47248.0,47247.0,1.6]
[1641217760747,0.83917849,47249.0,47247.0,1.55]
[1641217761349,0.83917849,47250.0,47247.0,1.55]
[1641217761947,0.7196736,47248.0,47247.0,1.55]
[1641217763008,0.89210149,47250.0,47247.0,1.552923]
[1641217763408,1.09210149,47250.0,47247.0,1.552923]
[1641217763811,0.94502533,47250.0,47247.0,1.552923]
[1641217764009,1.20136763,47249.0,47247.0,1.552923]
[1641217764711,0.83931752,47248.0,47247.0,1.552923]
[1641217764910,0.83931752,47248.0,47247.0,1.5]
[1641217765111,0.83931752,47249.0,47247.0,1.5]
[1641217765314,0.83931752,47248.0,47247.0,1.5]
[1641217766334,0.83931752,47249.0,47247.0,1.5]
[1641217766738,0.83931752,47248.0,47247.0,1.495]
[1641217770683,0.83931752,47248.0,47247.0,1.50078579]
[1641217771084,0.83931752,47248.0,47247.0,1.50183175]
[1641217771286,0.83931752,47248.0,47247.0,1.495]
[1641217772484,0.83931752,47249.0,47247.0,1.495]
[1641217774737,0.83931752,47250.0,47247.0,1.495]
[1641217774939,0.83931752,47250.0,47247.0,1.54792]
[1641217775339,0.83931752,47249.0,47247.0,1.54792]
[1641217775940,0.83931752,47249.0,47247.0,1.64792]
[1641217776343,0.60026923,47248.0,47247.0,1.595]
[1641217779192,0.72032307,47250.0,47247.0,1.595]
[1641217779394,1.21968917,47252.0,47247.0,1.495]
[1641217779395,0.72032307,47249.0,47247.0,1.495]
[1641217779592,0.83931752,47249.0,47247.0,1.495]
[1641217779794,0.89224099,47249.0,47247.0,1.495]